fUST/lending_fUST_20260531
["ID","MTS","AMOUNT","RATE_DAILY","PERIOD"]
[423485736,1780156827000,164.417583,3.963e-05,2]
[423485749,1780157309000,13539.615127,4.147e-05,2]
[423485751,1780157345000,-496.295324,5.019e-05,2]
[423485750,1780157345000,-80.83851391,5.009e-05,2]
[423485753,1780157345000,-4917.56363118,5.118e-05,2]
[423485752,1780157345000,-301.0,5.029e-05,2]
[423485885,1780157438000,-98.75730967,5.117e-05,2]
[423485883,1780157438000,-500.0,5.117e-05,2]
[423485881,1780157438000,-500.0,5.117e-05,2]
[423485879,1780157438000,-457.62743967,5.117e-05,2]
[423485874,1780157438000,-500.0,5.117e-05,2]
[423485876,1780157438000,-42.37256033,5.117e-05,2]
[423485869,1780157438000,-500.0,5.117e-05,2]
[423486530,1780157443000,-64.5300956,5.117e-05,2]
[423486639,1780157446000,-500.0,5.117e-05,2]
[423486638,1780157446000,-500.0,5.117e-05,2]
[423486635,1780157446000,-598.53096617,5.117e-05,2]
[423486631,1780157446000,-500.0,5.117e-05,2]
[423486634,1780157446000,-500.0,5.117e-05,2]
[423486633,1780157446000,-500.0,5.117e-05,2]
[423486630,1780157446000,-500.0,5.117e-05,2]
[423486636,1780157446000,-500.0,5.117e-05,2]
[423486628,1780157446000,-336.71259473,5.117e-05,2]
[423486637,1780157446000,-500.0,5.117e-05,2]
[423486629,1780157446000,-500.0,5.117e-05,2]
[423486641,1780157446000,-500.0,5.117e-05,2]
[423486632,1780157446000,-500.0,5.117e-05,2]
[423486654,1780157446000,-500.0,5.117e-05,2]
[423486652,1780157446000,-500.0,5.117e-05,2]
[423486660,1780157446000,-82.43636882,5.118e-05,2]
[423486661,1780157446000,-5108.34470743,5.118e-05,2]
[423486649,1780157446000,-500.0,5.117e-05,2]
[423486648,1780157446000,-500.0,5.117e-05,2]
[423486646,1780157446000,-500.0,5.117e-05,2]
[423486659,1780157446000,-300.0,5.117e-05,2]
[423486643,1780157446000,-500.0,5.117e-05,2]
[423486640,1780157446000,-500.0,5.117e-05,2]
[423486642,1780157446000,-592.23349023,5.117e-05,2]
[423486655,1780157446000,-500.0,5.117e-05,2]
[423486657,1780157446000,-500.0,5.117e-05,2]
[423486644,1780157446000,-500.0,5.117e-05,2]
[423486688,1780158402000,-157.14181939,5.016e-05,2]
[423486697,1780158551000,-500.0,5.017e-05,2]
[423486692,1780158551000,-142.85818061,5.016e-05,2]
[423486694,1780158551000,-300.0,5.016e-05,2]
[423486693,1780158551000,-300.0,5.016e-05,2]
[423486696,1780158551000,-500.0,5.017e-05,2]
[423486698,1780158551000,-403.04561429,5.017e-05,2]
[423486695,1780158551000,-500.0,5.017e-05,2]
[423486699,1780158551000,-500.0,5.017e-05,2]
[423486701,1780158551000,-500.0,5.017e-05,2]
[423486702,1780158551000,-500.0,5.017e-05,2]
[423486703,1780158551000,-500.0,5.017e-05,2]
[423486704,1780158551000,-500.0,5.017e-05,2]
[423486705,1780158551000,-254.1653311,5.017e-05,2]
[423486700,1780158551000,-500.0,5.017e-05,2]
[423486736,1780158632000,-245.8346689,5.017e-05,2]
[423486740,1780158632000,-500.0,5.017e-05,2]
[423486743,1780158632000,-500.0,5.017e-05,2]
[423486738,1780158632000,-474.90783992,5.017e-05,2]
[423486749,1780158632000,-30.33382749,5.017e-05,2]
[423486747,1780158632000,-500.0,5.017e-05,2]
[423486751,1780158632000,-468.27559003,5.017e-05,2]
[423486754,1780158632000,-164.03947521,5.018e-05,2]
[423486745,1780158632000,-500.0,5.017e-05,2]
[423487865,1780158646000,-36801.35139806,5.018e-05,2]
[423488760,1780158673000,-488.63722917,5.064e-05,2]
[423488761,1780158689000,-300.0,5.129e-05,2]
[423488763,1780158722000,28452.73303668,4.918e-05,2]
[423488766,1780159069000,174.48607695,4.929e-05,2]
[423488768,1780159390000,-5000.0,5.029e-05,2]
[423488773,1780159391000,-300.0,5.13e-05,2]
[423488770,1780159391000,-478.86448458,5.054e-05,2]
[423488769,1780159391000,-1343.55820046,5.029e-05,2]
[423488771,1780159391000,-300.0,5.129e-05,2]
[423488775,1780159391000,-300.0,5.13e-05,2]
[423488772,1780159391000,-300.0,5.13e-05,2]
[423488774,1780159391000,-300.0,5.13e-05,2]
[423488781,1780159391000,-177.57731496,5.13e-05,2]
[423488779,1780159391000,-300.0,5.13e-05,2]
[423488776,1780159391000,-300.0,5.13e-05,2]
[423488780,1780159391000,-300.0,5.13e-05,2]
[423488777,1780159391000,-300.0,5.13e-05,2]
[423488778,1780159391000,-300.0,5.13e-05,2]
[423488790,1780159392000,-544.78284603,5.316e-05,2]
[423488788,1780159392000,-369.39321913,5.28e-05,7]
[423488789,1780159392000,-330.54531555,5.316e-05,2]
[423488786,1780159392000,-300.0,5.13e-05,2]
[423488785,1780159392000,-300.0,5.13e-05,2]
[423488787,1780159392000,-300.0,5.13e-05,2]
[423488782,1780159392000,-122.42268504,5.13e-05,2]
[423488783,1780159392000,-300.0,5.13e-05,2]
[423488784,1780159392000,-300.0,5.13e-05,2]
[423488792,1780159393000,-5000.0,5.317e-05,2]
[423488791,1780159393000,-2132.85593425,5.317e-05,2]
[423488793,1780159394000,-1210.00041001,5.317e-05,2]
[423488794,1780159394000,-600.0,5.421e-05,2]
[423488795,1780159394000,-561.9850397,5.479e-05,2]
[423488797,1780159481000,-4700.0,5.317e-05,2]
[423488796,1780159481000,-300.0,5.316e-05,2]
[423488798,1780159484000,-5000.0,5.317e-05,2]
[423488801,1780159485000,-5000.0,5.317e-05,2]
[423488800,1780159485000,-5000.0,5.317e-05,2]
[423488799,1780159485000,-5000.0,5.317e-05,2]
[423488803,1780159486000,-5000.0,5.317e-05,2]
[423488802,1780159486000,-5000.0,5.317e-05,2]
[423488804,1780159487000,-5000.0,5.317e-05,2]
[423488805,1780159487000,-5000.0,5.317e-05,2]
[423488806,1780159487000,-3819.83424251,5.317e-05,2]
[423488808,1780159487000,-300.0,5.422e-05,2]
[423488809,1780159487000,-300.0,5.422e-05,2]
[423488810,1780159487000,-280.16575749,5.422e-05,2]
[423488807,1780159487000,-300.0,5.422e-05,2]
[423488811,1780159488000,-19.83424251,5.422e-05,2]
[423488813,1780159488000,-300.0,5.422e-05,2]
[423488814,1780159488000,-300.0,5.422e-05,2]
[423488815,1780159488000,-300.0,5.422e-05,2]
[423488812,1780159488000,-300.0,5.422e-05,2]
[423488818,1780159488000,-300.0,5.422e-05,2]
[423488817,1780159488000,-300.0,5.422e-05,2]
[423488821,1780159488000,-300.0,5.422e-05,2]
[423488822,1780159488000,-300.0,5.422e-05,2]
[423488816,1780159488000,-300.0,5.422e-05,2]
[423488819,1780159488000,-300.0,5.422e-05,2]
[423488820,1780159488000,-300.0,5.422e-05,2]
[423488824,1780159503000,-5000.0,5.317e-05,2]
[423488825,1780159504000,-4444.52738633,5.317e-05,2]
[423488826,1780159573000,-5000.0,5.311e-05,2]
[423488827,1780159574000,-2084.5747309,5.311e-05,2]
[423488828,1780159600000,-600.0,5.529e-05,2]
[423488829,1780159600000,-271.06644791,6.082e-05,2]
[423488877,1780159832000,-456.947,6.545e-05,2]
[423488863,1780159832000,-448.93355209,6.082e-05,2]
[423488865,1780159832000,-469.28719489,6.296e-05,2]
[423488867,1780159832000,-300.0,6.544e-05,2]
[423488871,1780159832000,-1414.0,6.545e-05,2]
[423488870,1780159832000,-931.0,6.544e-05,2]
[423488876,1780159832000,-648.0,6.545e-05,2]
[423488873,1780159832000,-2205.0,6.545e-05,2]
[423488879,1780159832000,-743.0,6.545e-05,2]
[423488885,1780159832000,-150.223,6.606e-05,2]
[423488887,1780159832000,-150.362,6.606e-05,2]
[423488883,1780159832000,-214.366,6.606e-05,2]
[423488889,1780159832000,-343.87881891,6.639e-05,2]
[423488891,1780159832000,-433.28390426,6.639e-05,2]
[423488881,1780159832000,-185.0,6.545e-05,2]
[423489425,1780159838000,-949.03276078,6.639e-05,2]
[423489765,1780159841000,-27.68428123,6.639e-05,2]
[423490102,1780159844000,-2274.99999997,6.639e-05,2]
[423490100,1780159844000,-96.78516088,6.639e-05,2]
[423490443,1780159846000,-300.0,6.639e-05,2]
[423490434,1780159846000,-300.0,6.639e-05,2]
[423490432,1780159846000,-300.0,6.639e-05,2]
[423490437,1780159846000,-300.0,6.639e-05,2]
[423490428,1780159846000,-7696.10253726,6.639e-05,2]
[423490430,1780159846000,-300.0,6.639e-05,2]
[423490440,1780159846000,-300.0,6.639e-05,2]
[423490455,1780159846000,-300.0,6.639e-05,2]
[423490457,1780159846000,-300.0,6.639e-05,2]
[423490446,1780159846000,-300.0,6.639e-05,2]
[423490453,1780159846000,-300.0,6.639e-05,2]
[423490449,1780159846000,-300.0,6.639e-05,2]
[423490463,1780159846000,-150.0,6.768e-05,2]
[423490459,1780159846000,-342.950935,6.651e-05,2]
[423490461,1780159846000,-864.0,6.691e-05,2]
[423490447,1780159846000,-300.0,6.639e-05,2]
[423490451,1780159846000,-300.0,6.639e-05,2]
[423490465,1780159847000,-867.23041285,6.849e-05,2]
[423490469,1780159847000,-312.20294863,6.849e-05,2]
[423490467,1780159847000,-555.02746423,6.849e-05,2]
[423490472,1780159847000,-1363.46754451,6.849e-05,2]
[423490474,1780159847000,-872.61922849,6.849e-05,2]
[423490471,1780159847000,-173.27263649,6.849e-05,2]
[423490480,1780159847000,-342.950935,6.931e-05,2]
[423490478,1780159847000,-272.42081539,6.849e-05,2]
[423490486,1780159847000,-152.0,7.118e-05,30]
[423490484,1780159847000,-537.6845,7.041e-05,2]
[423490476,1780159847000,-490.84831602,6.849e-05,2]
[423490499,1780159847000,-420.0,7.199e-05,2]
[423490504,1780159847000,-254.03875999,7.211e-05,2]
[423490506,1780159847000,-1000.0,7.36e-05,2]
[423490482,1780159847000,-151.77264937,7.041e-05,2]
[423490501,1780159847000,-88.91217501,7.211e-05,2]
[423490497,1780159847000,-152.0,7.162e-05,30]
[423490488,1780159847000,-152.0,7.126e-05,30]
[423490507,1780159847000,-233.46867796,7.491e-05,2]
[423490493,1780159847000,-152.0,7.137e-05,30]
[423490491,1780159847000,-152.0,7.137e-05,30]
[423490490,1780159847000,-910.885,7.126e-05,2]
[423490495,1780159847000,-152.0,7.147e-05,30]
[423490716,1780161032000,-152.0,5.6e-05,2]
[423490713,1780161032000,-152.0,5.561e-05,2]
[423490714,1780161032000,-459.90145099,5.581e-05,2]
[423490718,1780161032000,-152.0,5.647e-05,2]
[423490719,1780161032000,-56.33454901,6.647e-05,2]
[423490976,1780161040000,-306.828,6.647e-05,2]
[423491062,1780161041000,-91.81455781,6.647e-05,2]
[423491064,1780161041000,-646.12435559,6.739e-05,2]
[423491513,1780161046000,-518.59745391,6.739e-05,2]
[423491515,1780161046000,-300.0,6.746e-05,2]
[423491516,1780161046000,-150.93,6.747e-05,2]
[423491524,1780161046000,-305.9666907,6.747e-05,2]
[423491522,1780161046000,-429.57566956,6.747e-05,2]
[423491520,1780161046000,-152.669,6.747e-05,2]
[423491532,1780161046000,-678.45763974,6.747e-05,2]
[423491533,1780161046000,-435.74023211,6.747e-05,2]
[423491536,1780161046000,-443.0,6.747e-05,2]
[423491518,1780161046000,-250.0,6.747e-05,2]
[423491534,1780161046000,-307.25976789,6.747e-05,2]
[423491537,1780161046000,-159.076825,6.874e-05,2]
[423491539,1780161046000,-152.0,7.128e-05,30]
[423491538,1780161046000,-152.0,7.128e-05,30]
[423491540,1780161046000,-152.0,7.139e-05,30]
[423491543,1780161046000,-159.076825,7.236e-05,2]
[423491541,1780161046000,-152.0,7.147e-05,30]
[423491544,1780161046000,-15610.33853411,7.5e-05,2]
[423491542,1780161046000,-152.0,7.183e-05,30]
[423491535,1780161046000,-185.0,6.747e-05,2]
[423491595,1780162232000,-166.851013,6.07e-05,2]
[423491597,1780162232000,-159.076825,6.435e-05,2]
[423491593,1780162232000,-152.0,5.85e-05,2]
[423491589,1780162232000,-184.69660957,5.672e-05,7]
[423491592,1780162232000,-184.69660957,5.839e-05,7]
[423491586,1780162232000,-468.10342197,5.282e-05,2]
[423491587,1780162232000,-3988.7773827,5.325e-05,2]
[423491588,1780162232000,-184.69660957,5.561e-05,7]
[423491585,1780162232000,-303.7095849,5.238e-05,2]
[423491594,1780162232000,-184.69660957,6.006e-05,7]
[423491590,1780162232000,-159.076825,5.822e-05,2]
[423491596,1780162232000,-184.69660959,6.228e-05,7]
[423491591,1780162232000,-152.0,5.828e-05,2]
[423491598,1780162232000,-300.0,6.648e-05,2]
[423491609,1780162232000,-7058.53533362,6.649e-05,2]
[423491608,1780162232000,-500.0,6.648e-05,2]
[423491607,1780162232000,-500.0,6.648e-05,2]
[423491604,1780162232000,-500.0,6.648e-05,2]
[423491605,1780162232000,-395.69114802,6.648e-05,2]
[423491599,1780162232000,-1200.0,6.648e-05,2]
[423491600,1780162232000,-300.0,6.648e-05,2]
[423491610,1780162232000,-383.025,6.649e-05,2]
[423491601,1780162232000,-500.0,6.648e-05,2]
[423491602,1780162232000,-500.0,6.648e-05,2]
[423491606,1780162232000,-500.0,6.648e-05,2]
[423491603,1780162232000,-500.0,6.648e-05,2]
[423491613,1780162239000,-1625.53410256,6.649e-05,2]
[423491623,1780162241000,-500.0,6.663e-05,2]
[423491622,1780162241000,-26898.92624141,6.649e-05,2]
[423491621,1780162241000,-18539.9466972,6.649e-05,2]
[423491625,1780162241000,-166.851013,6.709e-05,2]
[423491626,1780162241000,-235.4880464,6.849e-05,2]
[423491624,1780162241000,-440.10725765,6.663e-05,2]
[423491628,1780162241000,-2485.63632965,6.849e-05,2]
[423491627,1780162241000,-7951.46129668,6.849e-05,2]
[423491718,1780162245000,-152.0,6.286e-05,2]
[423491722,1780162245000,-2247.07914634,6.849e-05,2]
[423491720,1780162245000,-4195.79989881,6.849e-05,2]
[423491855,1780162247000,-768.40544492,6.849e-05,2]
[423491854,1780162247000,-3274.76897636,6.849e-05,2]
[423491856,1780162275000,-300.0,6.648e-05,2]
[423491857,1780162293000,-543.11802766,6.648e-05,2]
[423491897,1780163432000,-319.84396505,6.402e-05,2]
[423491894,1780163432000,-142.43738849,6.402e-05,2]
[423491892,1780163432000,-159.076825,6.364e-05,2]
[423491901,1780163432000,-237.62396505,6.547e-05,2]
[423491905,1780163432000,-543.11802766,6.548e-05,2]
[423491903,1780163432000,-720.0,6.547e-05,2]
[423491907,1780163432000,-500.0,6.548e-05,2]
[423491908,1780163432000,-377.29901645,6.548e-05,2]
[423491899,1780163432000,-62.37603495,6.547e-05,2]
[423491902,1780163432000,-267.0,6.547e-05,2]
[423491911,1780163432000,-231.47285191,6.548e-05,2]
[423492390,1780163441000,-268.52714809,6.548e-05,2]
[423492392,1780163441000,-35.47285191,6.548e-05,2]
[423492587,1780163443000,-636.98720709,6.548e-05,2]
[423492585,1780163443000,-464.52714809,6.548e-05,2]
[423492594,1780163443000,-1794.03805006,6.549e-05,2]
[423492592,1780163443000,-13.19480427,6.549e-05,2]
[423492590,1780163443000,-439.84092219,6.549e-05,2]
[423492946,1780163446000,-500.0,6.549e-05,2]
[423493668,1780164073000,-728.708,6.418e-05,2]
[423493669,1780164089000,-447.51501194,6.463e-05,2]
[423493670,1780164106000,-643.8173939,6.599e-05,2]
[423493671,1780164123000,-772.70776391,6.599e-05,2]
[423493672,1780164140000,-643.8173939,6.599e-05,2]
[423493673,1780164157000,-772.70776391,6.599e-05,2]
[423493674,1780164174000,-643.8173939,6.599e-05,2]
[423493675,1780164191000,-772.70776391,6.599e-05,2]
[423493688,1780164632000,-152.0,6.23e-05,7]
[423493706,1780164632000,-433.45811007,6.549e-05,2]
[423493698,1780164632000,-3420.64699535,6.549e-05,2]
[423493693,1780164632000,-76.505,6.549e-05,2]
[423493690,1780164632000,-152.0,6.23e-05,7]
[423493842,1780164638000,-135962.31186143,6.549e-05,2]
[423493867,1780164638000,-17904.23706384,6.549e-05,2]
[423494113,1780164640000,-375.82439501,6.549e-05,2]
[423494836,1780164646000,-1900.0,6.549e-05,2]
[423494798,1780164646000,-774.30534769,6.549e-05,2]
[423494796,1780164646000,-237.44302301,6.548e-05,2]
[423494794,1780164646000,-201.3978896,6.548e-05,2]
[423495856,1780165832000,-1271.647121,6.582e-05,2]
[423495849,1780165832000,-300.0,6.581e-05,2]
[423495854,1780165832000,-460.96818549,6.582e-05,2]
[423495845,1780165832000,-431.311111,6.417e-05,2]
[423495852,1780165832000,-150.43662919,6.582e-05,2]
[423495847,1780165832000,-226.91,6.521e-05,2]
[423495841,1780165832000,-152.0,6.228e-05,7]
[423495843,1780165832000,-152.0,6.23e-05,7]
[423495839,1780165832000,-152.0,6.228e-05,7]
[423495837,1780165832000,-461.05853127,6.193e-05,2]
[423495835,1780165832000,-431.311111,6.158e-05,2]
[423495860,1780165832000,-3276.9696563,6.582e-05,2]
[423495850,1780165832000,-802.0,6.581e-05,2]
[423495862,1780165832000,-166.496439,6.582e-05,2]
[423495872,1780165832000,-152.0,6.599e-05,2]
[423495890,1780165832000,-4815.12819504,6.669e-05,2]
[423495864,1780165832000,-1356.4044025,6.582e-05,2]
[423495885,1780165832000,-36072.57087049,6.669e-05,2]
[423495883,1780165832000,-151.0,6.669e-05,2]
[423495881,1780165832000,-151.0,6.669e-05,2]
[423495877,1780165832000,-151.0,6.669e-05,2]
[423495879,1780165832000,-151.0,6.669e-05,2]
[423495888,1780165832000,-8301.82588732,6.669e-05,2]
[423495873,1780165832000,-772.707764,6.602e-05,2]
[423495868,1780165832000,-698.286,6.582e-05,2]
[423495859,1780165832000,-6802.0647353,6.582e-05,2]
[423495866,1780165832000,-16696.8626997,6.582e-05,2]
[423495870,1780165832000,-152.0,6.587e-05,2]
[423495875,1780165832000,-195.5464232,6.602e-05,2]
[423496006,1780165838000,-468.40660618,6.676e-05,2]
[423496005,1780165838000,-506708.44354932,6.669e-05,2]
[423496007,1780165838000,-431.311111,6.677e-05,2]
[423496009,1780165838000,-468.40660614,6.723e-05,2]
[423496008,1780165838000,-468.40660614,6.699e-05,2]
[423496011,1780165838000,-151.0,6.749e-05,2]
[423496013,1780165838000,-151.0,6.749e-05,2]
[423496014,1780165838000,-301.704588,6.749e-05,2]
[423496012,1780165838000,-151.0,6.749e-05,2]
[423496015,1780165838000,-543716.60675692,6.749e-05,2]
[423496010,1780165838000,-468.40660614,6.746e-05,2]
[423496655,1780165844000,-795.0,6.7e-05,2]
[423496653,1780165844000,-152.0,6.551e-05,2]
[423496657,1780165844000,-1168.88327861,6.749e-05,2]
[423496947,1780165846000,-288.6080418,6.749e-05,2]
[423497011,1780167041000,-215.655555,6.373e-05,2]
[423497012,1780167041000,-96.344445,6.421e-05,2]
[423497015,1780167041000,-500.0,6.566e-05,2]
[423497026,1780167041000,-9274.12804015,6.749e-05,2]
[423497025,1780167041000,-3579.8568757,6.687e-05,2]
[423497019,1780167041000,-300.0,6.686e-05,2]
[423497014,1780167041000,-384.83291564,6.421e-05,2]
[423497021,1780167041000,-4935.3254696,6.687e-05,2]
[423497024,1780167041000,-1017.3033019,6.687e-05,2]
[423497017,1780167041000,-215.655555,6.641e-05,2]
[423497018,1780167041000,-253.0,6.686e-05,2]
[423497020,1780167041000,-532.0,6.686e-05,2]
[423497022,1780167041000,-1621.5347222,6.687e-05,2]
[423497023,1780167041000,-2019.551368,6.687e-05,2]
[423497016,1780167041000,-595.762,6.614e-05,2]
[423497035,1780167044000,-404.53130019,6.749e-05,2]
[423497037,1780167047000,-1625.01557051,6.749e-05,2]
[423497041,1780167673000,-1440.08875883,6.373e-05,7]
[423497042,1780167690000,-220.23370917,6.373e-05,2]
[423497043,1780167706000,-251.32010426,6.373e-05,2]
[423497044,1780167724000,-172.524444,6.374e-05,2]
[423497045,1780167740000,-1440.08875883,6.5e-05,7]
[423497046,1780167757000,-220.23370917,6.563e-05,2]
[423497047,1780167773000,-279.76629083,6.563e-05,2]
[423497048,1780167791000,-1380.55617717,6.691e-05,7]
[423497056,1780168232000,-172.524444,6.338e-05,2]
[423497058,1780168232000,-39.01142139,6.373e-05,7]
[423497057,1780168232000,-462.12273716,6.356e-05,2]
[423497162,1780168239000,-276.11123543,6.691e-05,7]
[423497155,1780168239000,-237.09981404,6.373e-05,7]
[423497166,1780168239000,-300.0,6.748e-05,2]
[423497164,1780168239000,-1346.935349,6.707e-05,2]
[423497157,1780168239000,-500.0,6.47e-05,2]
[423497169,1780168239000,-5512.27210587,6.749e-05,2]
[423497158,1780168239000,-276.11123543,6.5e-05,7]
[423497167,1780168239000,-476.61,6.749e-05,2]
[423497160,1780168239000,-59.53258166,6.691e-05,7]
[423497791,1780168244000,-559.72327064,6.749e-05,2]
[423497788,1780168244000,-373.71119346,6.749e-05,2]
[423498755,1780169219000,269.4713347,4.963e-05,2]
[423498768,1780169431000,-464.79792463,5.736e-05,2]
[423498766,1780169431000,-300.0,5.479e-05,2]
[423498771,1780169431000,-250.85199798,6.017e-05,2]
[423498769,1780169431000,-172.524444,5.993e-05,2]
[423498773,1780169431000,-381.288,6.186e-05,2]
[423498775,1780169431000,-300.0,6.311e-05,2]
[423498779,1780169431000,-1200.0,6.311e-05,2]
[423498781,1780169431000,-19877.21121235,6.312e-05,2]
[423498783,1780169431000,-2902.36154705,6.312e-05,2]
[423498788,1780169431000,-433.45811007,6.312e-05,2]
[423498777,1780169431000,-300.0,6.311e-05,2]
[423498862,1780169438000,-4621.32621941,6.212e-05,2]
[423498864,1780169438000,-13333.33719943,6.412e-05,2]
[423499374,1780169443000,-3037.97638051,6.412e-05,2]
[423499387,1780169446000,-456.0,6.412e-05,2]
[423499388,1780169473000,-1298.20313909,6.412e-05,2]
[423499399,1780170632000,-2511.79930242,6.312e-05,2]
[423499394,1780170632000,-472.90196614,5.748e-05,2]
[423499397,1780170632000,-1200.0,6.311e-05,2]
[423499398,1780170632000,-188443.41694218,6.312e-05,2]
[423499395,1780170632000,-171.168995,5.935e-05,2]
[423499396,1780170632000,-300.0,6.311e-05,2]
[423499393,1780170632000,-324.5531,5.682e-05,2]
[423499532,1780170638000,-977.004617,6.67e-05,2]
[423499530,1780170638000,-152.0,6.655e-05,7]
[423499542,1780170638000,-151.0,6.746e-05,2]
[423499528,1780170638000,-152.0,6.655e-05,7]
[423499534,1780170638000,-152.0,6.693e-05,7]
[423499549,1780170638000,-651.0,6.749e-05,2]
[423499538,1780170638000,-668.71772022,6.74e-05,2]
[423499540,1780170638000,-352.561,6.746e-05,2]
[423499536,1780170638000,-152.0,6.736e-05,2]
[423499547,1780170638000,-651.0,6.749e-05,2]
[423499545,1780170638000,-651.0,6.749e-05,2]
[423499525,1780170638000,-532.76132779,6.646e-05,2]
[423499502,1780170638000,-668.71772026,6.411e-05,2]
[423499520,1780170638000,-668.71772022,6.63e-05,2]
[423499521,1780170638000,-500.0,6.646e-05,2]
[423499510,1780170638000,-195.5464232,6.482e-05,2]
[423499511,1780170638000,-3634.0144377,6.482e-05,2]
[423499517,1780170638000,-171.168995,6.56e-05,2]
[423499514,1780170638000,-762.9774764,6.482e-05,2]
[423499515,1780170638000,-668.71772022,6.521e-05,2]
[423499504,1780170638000,-59257.02156377,6.412e-05,2]
[423499508,1780170638000,-500.0,6.468e-05,2]
[423499506,1780170638000,-150.0,6.412e-05,2]
[423499499,1780170638000,-293229.56278662,6.312e-05,2]
[423499543,1780170638000,-151.0,6.746e-05,2]
[423499523,1780170638000,-500.0,6.646e-05,2]
[423499551,1780170638000,-651.0,6.749e-05,2]
[423499592,1780170638000,-651.0,6.749e-05,2]
[423499559,1780170638000,-651.0,6.749e-05,2]
[423499553,1780170638000,-651.0,6.749e-05,2]
[423499609,1780170638000,-151.0,6.749e-05,2]
[423499602,1780170638000,-151.0,6.749e-05,2]
[423499605,1780170638000,-151.0,6.749e-05,2]
[423499600,1780170638000,-181.513264,6.749e-05,2]
[423499598,1780170638000,-651.0,6.749e-05,2]
[423499596,1780170638000,-651.0,6.749e-05,2]
[423499585,1780170638000,-651.0,6.749e-05,2]
[423499594,1780170638000,-651.0,6.749e-05,2]
[423499582,1780170638000,-651.0,6.749e-05,2]
[423499589,1780170638000,-651.0,6.749e-05,2]
[423499580,1780170638000,-651.0,6.749e-05,2]
[423499578,1780170638000,-651.0,6.749e-05,2]
[423499607,1780170638000,-151.0,6.749e-05,2]
[423499587,1780170638000,-651.0,6.749e-05,2]
[423499561,1780170638000,-651.0,6.749e-05,2]
[423499591,1780170638000,-651.0,6.749e-05,2]
[423499555,1780170638000,-651.0,6.749e-05,2]
[423499567,1780170638000,-651.0,6.749e-05,2]
[423499565,1780170638000,-651.0,6.749e-05,2]
[423499563,1780170638000,-651.0,6.749e-05,2]
[423499557,1780170638000,-651.0,6.749e-05,2]
[423499571,1780170638000,-588.34379705,6.749e-05,2]
[423499569,1780170638000,-651.0,6.749e-05,2]
[423499575,1780170638000,-651.0,6.749e-05,2]
[423499577,1780170638000,-651.0,6.749e-05,2]
[423499573,1780170638000,-651.0,6.749e-05,2]
[423499666,1780170639000,-1211.89593577,6.849e-05,2]
[423499662,1780170639000,-2375.31603411,6.849e-05,2]
[423499668,1780170639000,-775.61339889,6.849e-05,2]
[423499670,1780170639000,-436.28253688,6.849e-05,2]
[423499672,1780170639000,-242.13680797,6.849e-05,2]
[423499682,1780170639000,-698.6262055,6.849e-05,2]
[423499674,1780170639000,-2963.6541015,6.849e-05,2]
[423499684,1780170639000,-174.48189482,6.849e-05,2]
[423499688,1780170639000,-341.40053764,6.849e-05,2]
[423499676,1780170639000,-740.17261185,6.849e-05,2]
[423499680,1780170639000,-175.29872517,6.849e-05,2]
[423499686,1780170639000,-1366.96911969,6.849e-05,2]
[423499678,1780170639000,-674.35649334,6.849e-05,2]
[423499692,1780170639000,-1440.08875883,6.883e-05,7]
[423499694,1780170639000,-276.11123543,6.883e-05,7]
[423499696,1780170639000,-420.0,6.942e-05,2]
[423499698,1780170639000,-179.0,6.942e-05,2]
[423499700,1780170639000,-1965.41,7.086e-05,2]
[423499702,1780170639000,-982.7,7.086e-05,2]
[423499710,1780170639000,-276.11123545,7.137e-05,7]
[423499704,1780170639000,-800.0,7.095e-05,2]
[423499664,1780170639000,-1745.13014751,6.849e-05,2]
[423499714,1780170639000,-171.168995,7.184e-05,2]
[423499690,1780170639000,-174.6174466,6.849e-05,2]
[423499660,1780170639000,-3102.45359557,6.849e-05,2]
[423499644,1780170639000,-883.49569963,6.849e-05,2]
[423499659,1780170639000,-3926.54283189,6.849e-05,2]
[423499708,1780170639000,-1440.08875883,7.137e-05,7]
[423499618,1780170639000,-151.0,6.844e-05,2]
[423499614,1780170639000,-794.0,6.8e-05,2]
[423499621,1780170639000,-1414.0,6.844e-05,2]
[423499612,1780170639000,-151.0,6.749e-05,2]
[423499616,1780170639000,-500.0,6.841e-05,2]
[423499622,1780170639000,-2205.0,6.844e-05,2]
[423499611,1780170639000,-151.0,6.749e-05,2]
[423499625,1780170639000,-3629.0,6.844e-05,2]
[423499639,1780170639000,-1987.86532417,6.849e-05,2]
[423499641,1780170639000,-1380.46203067,6.849e-05,2]